[Event "9th RTU Rapid 2019"]
[Site "Riga"]
[Date "2019.08.04"]
[Round "6.12"]
[White "Kiik, Kalle"]
[Black "Zhukov, Anton"]
[Result "1-0"]
[WhiteElo "2308"]
[BlackElo "2087"]
[PlyCount "104"]
[EventDate "2019.08.05"]
[EventType "swiss"]
[EventCountry "LAT"]
[TimeControl "5400+30"]
[WhiteClock "0:00:11"]
[BlackClock "0:03:02"]

1. e4 {[%emt 1:15:24]} c5 {[%emt 1:15:21]} 2. c3 {[%emt 0:00:27]} Nf6 {[%emt 0:00:34]} 3. e5 {[%emt 0:00:26]} Nd5 {[%emt 0:00:28]} 4. d4 {[%emt 0:00:27]} e6 {[%emt 0:00:52]} 5. c4 {[%emt 0:00:40]} Nc7 {[%emt 0:00:59]} 6. Nf3 {[%emt 0:00:40]} cxd4 {[%emt 0:00:45]} 7. Nxd4 {[%emt 0:00:28]} d6 {[%emt 0:00:33]} 8. exd6 {[%emt 0:00:34]} Bxd6 {[%emt 0:00:31]} 9. Nc3 {[%emt 0:00:28]} O-O {[%emt 0:00:39]} 10. Bd3 {[%emt 0:00:27]} Be7 {[%emt 0:01:21]} 11. O-O {[%emt 0:00:40]} Bf6 {[%emt 0:00:27]} 12. Be3 {[%emt 0:00:42]} g6 {[%emt 0:00:31]} 13. Be2 {[%emt 0:00:53]} e5 {[%emt 0:00:35]} 14. Ndb5 {[%emt 0:00:57]} Nxb5 {[%emt 0:00:51]} 15. Nxb5 {[%emt 0:00:41]} Nc6 {[%emt 0:00:44]} 16. Bf3 {[%emt 0:01:19]} Be6 {[%emt 0:01:41]} 17. Bd5 {[%emt 0:00:56]} a6 {[%emt 0:02:07]} 18. Nc3 {[%emt 0:01:02]} Nd4 {[%emt 0:01:20]} 19. Bxe6 {[%emt 0:01:03]} Nxe6 {[%emt 0:00:36]} 20. Nd5 {[%emt 0:00:32]} Bg5 {[%emt 0:01:23]} 21. Qd2 {[%emt 0:01:06]} Bxe3 {[%emt 0:00:44]} 22. fxe3 {[%emt 0:00:50]} f5 {[%emt 0:01:49]} 23. Rad1 {[%emt 0:00:34]} Qh4 {[%emt 0:02:33]} 24. Qb4 {[%emt 0:00:41]} Rf7 {[%emt 0:00:45]} 25. Qd6 {[%emt 0:00:39]} Re8 {[%emt 0:01:06]} 26. Qxe5 {[%emt 0:00:30]} Nc7 {[%emt 0:00:30]} 27. Qf4 {[%emt 0:00:51]} Qxf4 {[%emt 0:00:33]} 28. exf4 {[%emt 0:00:48]} Re4 {[%emt 0:00:37]} 29. Nb6 {[%emt 0:01:14]} Ne6 {[%emt 0:00:32]} 30. g3 {[%emt 0:00:37]} Nd4 {[%emt 0:00:47]} 31. Rf2 {[%emt 0:00:52]} Rfe7 {[%emt 0:00:51]} 32. Kg2 {[%emt 0:00:54]} R7e6 {[%emt 0:00:41]} 33. Nd7 {[%emt 0:02:01]} b6 {[%emt 0:01:06]} 34. c5 {[%emt 0:00:53]} b5 {[%emt 0:00:38]} 35. Rfd2 {[%emt 0:01:06]} Nc6 {[%emt 0:00:27]} 36. a3 {[%emt 0:00:57]} a5 {[%emt 0:00:29]} 37. Nb6 {[%emt 0:00:42]} Ne7 {[%emt 0:00:47]} 38. Kf1 {[%emt 0:00:49]} Rc6 {[%emt 0:00:33]} 39. Rd8+ {[%emt 0:00:48]} Kg7 {[%emt 0:00:38]} 40. Nd7 {[%emt 0:00:35]} Rce6 {[%emt 0:00:29]} 41. Rb8 {[%emt 0:00:52]} b4 {[%emt 0:00:29]} 42. axb4 {[%emt 0:00:27]} axb4 {[%emt 0:00:26]} 43. Ne5 {[%emt 0:00:29]} Nc6 {[%emt 0:00:52]} 44. Rd7+ {[%emt 0:00:38]} Re7 {[%emt 0:00:37]} 45. Rbb7 {[%emt 0:00:53]} Kf6 {[%emt 0:01:04]} 46. Nxc6 {[%emt 0:00:30]} Re1+ {[%emt 0:00:26]} 47. Kg2 {[%emt 0:00:27]} R7e2+ {[%emt 0:00:26]} 48. Kh3 {[%emt 0:00:28]} g5 {[%emt 0:00:40]} 49. Rf7+ {[%emt 0:00:31]} Kg6 {[%emt 0:00:27]} 50. Rg7+ {[%emt 0:00:27]} Kf6 {[%emt 0:00:33]} 51. fxg5+ {[%emt 0:00:29]} Ke6 {[%emt 0:00:26]} 52. Nd4+ {[%emt 0:00:34]} Kd5 1-0

[Event "9th RTU Rapid 2019"]
[Site "Riga"]
[Date "2019.08.04"]
[Round "6.13"]
[White "Dhyana Patel"]
[Black "Lavendelis, Egons"]
[Result "0-1"]
[WhiteElo "1900"]
[BlackElo "2292"]
[PlyCount "86"]
[EventDate "2019.08.05"]
[EventType "swiss"]
[EventCountry "LAT"]
[TimeControl "5400+30"]
[WhiteClock "0:00:21"]
[BlackClock "0:01:00"]

1. e4 {[%emt 1:15:22]} c5 {[%emt 1:15:21]} 2. Nf3 {[%emt 0:00:27]} Nc6 {[%emt 0:00:26]} 3. Bb5 {[%emt 0:00:26]} g6 {[%emt 0:00:27]} 4. Bxc6 {[%emt 0:00:26]} dxc6 {[%emt 0:00:26]} 5. h3 {[%emt 0:00:26]} Bg7 {[%emt 0:00:27]} 6. d3 {[%emt 0:00:26]} Qc7 {[%emt 0:00:39]} 7. Be3 {[%emt 0:00:28]} Bxb2 {[%emt 0:00:37]} 8. Nbd2 {[%emt 0:00:27]} Bxa1 {[%emt 0:01:38]} 9. Qxa1 {[%emt 0:00:27]} Nf6 {[%emt 0:00:44]} 10. Bxc5 {[%emt 0:00:47]} O-O {[%emt 0:00:29]} 11. Bd4 {[%emt 0:00:33]} Ne8 {[%emt 0:00:34]} 12. O-O {[%emt 0:00:32]} f6 {[%emt 0:00:27]} 13. Qc3 {[%emt 0:00:50]} Be6 {[%emt 0:01:18]} 14. Nb3 {[%emt 0:00:48]} b6 {[%emt 0:00:38]} 15. Be3 {[%emt 0:00:33]} c5 {[%emt 0:01:19]} 16. Bh6 {[%emt 0:00:55]} Rf7 {[%emt 0:01:46]} 17. e5 {[%emt 0:00:39]} Ng7 {[%emt 0:01:55]} 18. Re1 {[%emt 0:01:40]} Bd5 {[%emt 0:01:08]} 19. Nh2 {[%emt 0:02:20]} f5 {[%emt 0:02:24]} 20. Nd4 {[%emt 0:02:13]} Qc8 {[%emt 0:01:55]} 21. Ndf3 {[%emt 0:00:56]} Ne6 {[%emt 0:00:37]} 22. Qd2 {[%emt 0:00:49]} b5 {[%emt 0:00:53]} 23. Ng5 {[%emt 0:00:41]} Nxg5 {[%emt 0:00:28]} 24. Qxg5 {[%emt 0:00:28]} e6 {[%emt 0:00:33]} 25. Nf1 {[%emt 0:00:35]} Bxa2 {[%emt 0:01:04]} 26. Ng3 {[%emt 0:00:40]} Qd8 {[%emt 0:00:29]} 27. Qf4 {[%emt 0:00:53]} b4 {[%emt 0:00:56]} 28. Ra1 {[%emt 0:00:46]} Bd5 {[%emt 0:00:28]} 29. Bg5 {[%emt 0:00:31]} Qc7 {[%emt 0:00:28]} 30. Re1 {[%emt 0:01:06]} a5 {[%emt 0:00:29]} 31. h4 {[%emt 0:01:32]} a4 {[%emt 0:00:39]} 32. h5 {[%emt 0:00:27]} b3 {[%emt 0:01:51]} 33. cxb3 {[%emt 0:00:37]} axb3 {[%emt 0:00:26]} 34. hxg6 {[%emt 0:00:31]} hxg6 {[%emt 0:00:27]} 35. Qc1 {[%emt 0:01:52]} Qb6 {[%emt 0:00:46]} 36. Bf6 {[%emt 0:00:35]} Rh7 {[%emt 0:02:03]} 37. Qg5 {[%emt 0:00:28]} Kf7 {[%emt 0:00:25]} 38. Ne2 {[%emt 0:01:51]} b2 {[%emt 0:00:44]} 39. Nc3 {[%emt 0:01:36]} Ra1 {[%emt 0:00:36]} 40. Qd2 {[%emt 0:01:20]} b1=Q {[%emt 0:00:38]} 41. Nxb1 {[%emt 0:00:26]} Rxb1 {[%emt 0:00:28]} 42. Bg5 {[%emt 0:00:33]} Qb4 {[%emt 0:00:36]} 43. f3 {[%emt 0:00:32]} Rxe1+ {[%emt 0:00:27]} 0-1

[Event "9th RTU Rapid 2019"]
[Site "Riga"]
[Date "2019.08.04"]
[Round "6.14"]
[White "Ciolek, Andreas"]
[Black "Wagner, Dennis"]
[Result "0-1"]
[WhiteElo "2158"]
[BlackElo "2473"]
[PlyCount "92"]
[EventDate "2019.08.05"]
[EventType "swiss"]
[EventCountry "LAT"]
[TimeControl "5400+30"]
[WhiteClock "0:00:43"]
[BlackClock "0:00:07"]

1. e4 {[%emt 1:15:21]} e5 {[%emt 1:15:21]} 2. Nf3 {[%emt 0:00:33]} Nc6 {[%emt 0:00:26]} 3. Bc4 {[%emt 0:00:41]} d6 {[%emt 0:00:52]} 4. c3 {[%emt 0:00:50]} h6 {[%emt 0:00:27]} 5. d3 {[%emt 0:00:35]} g5 {[%emt 0:00:34]} 6. h3 {[%emt 0:00:36]} Bg7 {[%emt 0:00:27]} 7. Bb3 {[%emt 0:00:35]} Nf6 {[%emt 0:00:28]} 8. Nbd2 {[%emt 0:00:29]} d5 {[%emt 0:00:58]} 9. Qe2 {[%emt 0:00:31]} O-O {[%emt 0:00:32]} 10. Nf1 {[%emt 0:00:56]} a5 {[%emt 0:01:07]} 11. Ng3 {[%emt 0:00:40]} a4 {[%emt 0:00:29]} 12. Bc2 {[%emt 0:00:31]} b6 {[%emt 0:00:40]} 13. Rb1 {[%emt 0:02:44]} dxe4 {[%emt 0:00:50]} 14. dxe4 {[%emt 0:00:37]} Ba6 {[%emt 0:00:27]} 15. Qe3 {[%emt 0:00:30]} Re8 {[%emt 0:01:01]} 16. Nf5 {[%emt 0:00:34]} Nh5 {[%emt 0:00:36]} 17. g3 {[%emt 0:00:47]} Qf6 {[%emt 0:02:10]} 18. h4 {[%emt 0:01:00]} Nf4 {[%emt 0:01:24]} 19. Rg1 {[%emt 0:02:14]} Rad8 {[%emt 0:04:22]} 20. Nxg7 {[%emt 0:02:16]} Qxg7 {[%emt 0:01:20]} 21. hxg5 {[%emt 0:00:49]} hxg5 {[%emt 0:00:54]} 22. b4 {[%emt 0:02:41]} axb3 {[%emt 0:00:38]} 23. axb3 {[%emt 0:00:26]} Nd3+ {[%emt 0:00:39]} 24. Bxd3 Rxd3 {[%emt 0:00:27]} 25. Qe2 {[%emt 0:01:20]} g4 {[%emt 0:00:47]} 26. Nh4 {[%emt 0:01:07]} Ne7 {[%emt 0:00:54]} 27. c4 {[%emt 0:01:11]} Red8 {[%emt 0:00:30]} 28. Be3 {[%emt 0:00:48]} Bb7 {[%emt 0:00:27]} 29. c5 {[%emt 0:00:46]} Bxe4 {[%emt 0:00:38]} 30. cxb6 {[%emt 0:00:26]} Rxe3 {[%emt 0:01:10]} 31. Qxe3 {[%emt 0:00:43]} Bxb1 {[%emt 0:00:26]} 32. bxc7 {[%emt 0:00:26]} Ra8 {[%emt 0:00:58]} 33. Qc1 {[%emt 0:00:47]} Bd3 {[%emt 0:00:50]} 34. Qc3 {[%emt 0:01:52]} e4 {[%emt 0:01:03]} 35. Qxg7+ {[%emt 0:00:38]} Kxg7 {[%emt 0:00:26]} 36. Kd2 {[%emt 0:00:25]} Ra2+ {[%emt 0:00:32]} 37. Ke3 {[%emt 0:00:29]} Nd5+ {[%emt 0:00:46]} 38. Kd4 {[%emt 0:00:26]} Nxc7 {[%emt 0:00:26]} 39. Nf5+ {[%emt 0:00:42]} Kf6 {[%emt 0:00:26]} 40. Ne3 {[%emt 0:00:26]} Ke6 {[%emt 0:00:43]} 41. Nxg4 {[%emt 0:00:45]} Kd6 {[%emt 0:00:36]} 42. Rg2 {[%emt 0:00:38]} f5 {[%emt 0:00:37]} 43. Nh6 {[%emt 0:00:32]} Ne6+ {[%emt 0:00:45]} 44. Kc3 {[%emt 0:00:26]} Rc2+ {[%emt 0:01:14]} 45. Kb4 {[%emt 0:00:26]} e3 {[%emt 0:00:27]} 46. fxe3 {[%emt 0:00:38]} Rxg2 {[%emt 0:00:27]} 0-1

[Event "9th RTU Rapid 2019"]
[Site "Riga"]
[Date "2019.08.04"]
[Round "6.15"]
[White "Kopylov, Daniel"]
[Black "Bulmaga, Irina"]
[Result "0-1"]
[WhiteElo "2103"]
[BlackElo "2434"]
[PlyCount "74"]
[EventDate "2019.08.05"]
[EventType "swiss"]
[EventCountry "LAT"]
[TimeControl "5400+30"]
[WhiteClock "0:05:29"]
[BlackClock "0:00:07"]

1. e4 {[%emt 1:15:23]} c5 {[%emt 1:15:22]} 2. Nf3 {[%emt 0:00:29]} d6 {[%emt 0:00:26]} 3. d4 {[%emt 0:00:30]} cxd4 {[%emt 0:00:27]} 4. Nxd4 {[%emt 0:00:26]} Nf6 {[%emt 0:00:27]} 5. Nc3 {[%emt 0:00:26]} a6 {[%emt 0:00:28]} 6. Be3 {[%emt 0:00:35]} e5 {[%emt 0:00:27]} 7. Nf3 {[%emt 0:00:27]} Be7 {[%emt 0:00:39]} 8. Bc4 {[%emt 0:00:29]} O-O {[%emt 0:00:30]} 9. O-O {[%emt 0:00:32]} b5 {[%emt 0:00:50]} 10. Bd5 {[%emt 0:01:28]} b4 {[%emt 0:01:10]} 11. Bxa8 {[%emt 0:00:30]} bxc3 {[%emt 0:00:28]} 12. bxc3 {[%emt 0:00:35]} Qc7 {[%emt 0:00:30]} 13. Rb1 {[%emt 0:00:42]} Nbd7 {[%emt 0:00:42]} 14. Bd5 {[%emt 0:00:43]} Nxd5 {[%emt 0:00:28]} 15. Qxd5 {[%emt 0:00:46]} Nf6 {[%emt 0:00:30]} 16. Qd3 {[%emt 0:00:51]} Bb7 {[%emt 0:01:06]} 17. Nd2 {[%emt 0:00:59]} d5 {[%emt 0:00:27]} 18. Bg5 {[%emt 0:02:55]} dxe4 {[%emt 0:00:57]} 19. Qc4 {[%emt 0:00:56]} Rc8 {[%emt 0:04:06]} 20. Bxf6 {[%emt 0:01:53]} gxf6 {[%emt 0:00:27]} 21. Qxc7 {[%emt 0:02:37]} Rxc7 {[%emt 0:00:27]} 22. Rb3 {[%emt 0:00:26]} f5 {[%emt 0:01:08]} 23. Rfb1 {[%emt 0:00:36]} Bc6 {[%emt 0:00:34]} 24. c4 {[%emt 0:03:09]} f4 {[%emt 0:00:50]} 25. Re1 {[%emt 0:00:33]} f5 {[%emt 0:00:34]} 26. g4 {[%emt 0:01:29]} fxg3 {[%emt 0:01:33]} 27. Rxg3+ {[%emt 0:01:03]} Kf7 {[%emt 0:00:40]} 28. Rh3 {[%emt 0:00:27]} Kg6 {[%emt 0:00:36]} 29. Kf1 {[%emt 0:00:55]} Bg5 {[%emt 0:01:44]} 30. Ke2 {[%emt 0:01:39]} f4 {[%emt 0:00:38]} 31. f3 {[%emt 0:00:52]} Bd7 {[%emt 0:00:38]} 32. Nxe4 {[%emt 0:00:32]} Bxh3 {[%emt 0:00:26]} 33. Rg1 {[%emt 0:00:29]} h6 {[%emt 0:00:26]} 34. c5 {[%emt 0:00:26]} Kf7 {[%emt 0:00:42]} 35. Kd2 {[%emt 0:00:36]} Bf5 {[%emt 0:00:36]} 36. Nd6+ {[%emt 0:00:29]} Ke6 {[%emt 0:00:32]} 37. Ne8 {[%emt 0:00:07]} Rxc5 {[%emt 0:00:11]} 0-1

[Event "9th RTU Rapid 2019"]
[Site "Riga"]
[Date "2019.08.04"]
[Round "6.16"]
[White "Suleymenov, Alisher"]
[Black "Mota, Pankit"]
[Result "1-0"]
[WhiteElo "2348"]
[BlackElo "1841"]
[PlyCount "65"]
[EventDate "2019.08.05"]
[EventType "swiss"]
[EventCountry "LAT"]
[TimeControl "5400+30"]
[WhiteClock "0:03:16"]
[BlackClock "0:00:23"]

1. d4 {[%emt 1:15:21]} d5 {[%emt 1:15:21]} 2. c4 {[%emt 0:00:26]} c6 {[%emt 0:00:26]} 3. Nf3 {[%emt 0:00:26]} Nf6 {[%emt 0:00:26]} 4. g3 {[%emt 0:00:25]} Bg4 {[%emt 0:00:45]} 5. Ne5 {[%emt 0:00:34]} Bf5 {[%emt 0:00:27]} 6. Nc3 {[%emt 0:00:31]} e6 {[%emt 0:00:33]} 7. Bg2 {[%emt 0:00:27]} Bb4 {[%emt 0:00:42]} 8. O-O {[%emt 0:00:34]} O-O {[%emt 0:00:27]} 9. Qb3 {[%emt 0:05:56]} Qe7 {[%emt 0:03:12]} 10. Bg5 {[%emt 0:00:48]} h6 {[%emt 0:01:26]} 11. Bxf6 gxf6 {[%emt 0:00:27]} 12. Nf3 {[%emt 0:01:51]} a5 {[%emt 0:00:38]} 13. a3 {[%emt 0:02:56]} dxc4 {[%emt 0:02:07]} 14. Qxc4 {[%emt 0:00:26]} b5 {[%emt 0:00:26]} 15. Qb3 {[%emt 0:00:33]} Bxc3 {[%emt 0:00:38]} 16. Qxc3 {[%emt 0:00:33]} b4 {[%emt 0:01:37]} 17. Qd2 {[%emt 0:00:51]} Kg7 {[%emt 0:00:27]} 18. axb4 {[%emt 0:00:29]} a4 {[%emt 0:00:27]} 19. Rfc1 {[%emt 0:01:56]} Be4 {[%emt 0:00:29]} 20. Nh4 {[%emt 0:01:35]} Bxg2 {[%emt 0:00:28]} 21. Nxg2 {[%emt 0:00:44]} Rd8 {[%emt 0:00:46]} 22. Nf4 {[%emt 0:00:42]} e5 {[%emt 0:00:40]} 23. Nh5+ {[%emt 0:00:30]} Kg6 {[%emt 0:00:26]} 24. Qc2+ {[%emt 0:01:28]} f5 {[%emt 0:00:58]} 25. dxe5 {[%emt 0:00:26]} Qxe5 {[%emt 0:03:22]} 26. Nf4+ {[%emt 0:00:26]} Kg7 {[%emt 0:00:27]} 27. Ra3 {[%emt 0:00:26]} Rd4 {[%emt 0:00:53]} 28. Rf3 {[%emt 0:02:01]} Re4 {[%emt 0:00:42]} 29. Nd3 {[%emt 0:00:29]} Qd5 {[%emt 0:01:08]} 30. Nc5 {[%emt 0:00:38]} Na6 {[%emt 0:00:57]} 31. Nxe4 fxe4 {[%emt 0:00:26]} 32. Rf4 {[%emt 0:01:13]} Nxb4 {[%emt 0:00:30]} 33. Qc3+ {[%emt 0:00:26]} 1-0

[Event "9th RTU Rapid 2019"]
[Site "Riga"]
[Date "2019.08.04"]
[Round "6.17"]
[White "Smirnova, Ekaterina"]
[Black "Miedema, David"]
[Result "1/2-1/2"]
[WhiteElo "2134"]
[BlackElo "2313"]
[PlyCount "75"]
[EventDate "2019.08.05"]
[EventType "swiss"]
[EventCountry "LAT"]
[TimeControl "5400+30"]
[WhiteClock "0:12:28"]
[BlackClock "0:07:19"]

1. d4 {[%emt 1:15:21]} Nf6 {[%emt 1:15:21]} 2. c4 {[%emt 0:00:26]} g6 {[%emt 0:00:31]} 3. Nc3 {[%emt 0:00:26]} d5 {[%emt 0:00:26]} 4. e3 {[%emt 0:00:37]} Bg7 {[%emt 0:00:26]} 5. cxd5 {[%emt 0:00:34]} Nxd5 {[%emt 0:00:27]} 6. Nxd5 {[%emt 0:00:26]} Qxd5 {[%emt 0:00:26]} 7. Ne2 {[%emt 0:00:26]} O-O {[%emt 0:01:08]} 8. Nc3 {[%emt 0:00:26]} Qd6 {[%emt 0:00:28]} 9. Be2 {[%emt 0:00:42]} Nd7 {[%emt 0:00:27]} 10. O-O {[%emt 0:00:31]} c5 {[%emt 0:00:27]} 11. d5 {[%emt 0:01:03]} Rd8 {[%emt 0:00:38]} 12. e4 {[%emt 0:00:34]} e6 {[%emt 0:00:35]} 13. dxe6 {[%emt 0:00:56]} Qxe6 {[%emt 0:00:33]} 14. Bg5 {[%emt 0:01:56]} Re8 {[%emt 0:00:42]} 15. Nd5 {[%emt 0:00:43]} Qxe4 {[%emt 0:01:35]} 16. Nc7 {[%emt 0:00:39]} Qxe2 {[%emt 0:00:31]} 17. Qxe2 {[%emt 0:00:27]} Rxe2 {[%emt 0:00:26]} 18. Nxa8 {[%emt 0:00:27]} Nf8 {[%emt 0:01:04]} 19. Nc7 {[%emt 0:02:19]} Ne6 {[%emt 0:00:36]} 20. Nxe6 {[%emt 0:00:28]} Bxe6 {[%emt 0:00:26]} 21. Rad1 {[%emt 0:00:57]} Bd4 {[%emt 0:00:42]} 22. Rd2 {[%emt 0:00:54]} Rxd2 {[%emt 0:00:38]} 23. Bxd2 {[%emt 0:00:26]} Bxa2 {[%emt 0:00:54]} 24. Ra1 {[%emt 0:00:33]} Bd5 {[%emt 0:00:26]} 25. Bc3 {[%emt 0:01:48]} Bxc3 {[%emt 0:00:28]} 26. bxc3 {[%emt 0:00:26]} b5 {[%emt 0:00:26]} 27. Rxa7 {[%emt 0:00:35]} b4 {[%emt 0:00:26]} 28. cxb4 {[%emt 0:00:30]} cxb4 {[%emt 0:00:26]} 29. Ra5 {[%emt 0:00:44]} Be6 {[%emt 0:00:28]} 30. Rb5 {[%emt 0:00:40]} b3 {[%emt 0:00:26]} 31. f4 {[%emt 0:00:26]} h5 {[%emt 0:00:33]} 32. Kf2 {[%emt 0:00:26]} Kg7 {[%emt 0:00:28]} 33. Ke3 {[%emt 0:00:26]} Kf6 {[%emt 0:00:32]} 34. g3 {[%emt 0:00:34]} Bc4 {[%emt 0:00:32]} 35. Rb4 {[%emt 0:00:31]} Be6 {[%emt 0:00:29]} 36. Rb5 {[%emt 0:01:27]} Bc4 {[%emt 0:00:28]} 37. Rb4 {[%emt 0:00:26]} Be6 {[%emt 0:00:27]} 38. Rb5 {[%emt 0:00:25]} 1/2-1/2

[Event "9th RTU Rapid 2019"]
[Site "Riga"]
[Date "2019.08.04"]
[Round "6.18"]
[White "Germanovs, Georgijs"]
[Black "Afanasiev, Vadim"]
[Result "0-1"]
[WhiteElo "1911"]
[BlackElo "2241"]
[PlyCount "52"]
[EventDate "2019.08.05"]
[EventType "swiss"]
[EventCountry "LAT"]
[TimeControl "5400+30"]
[WhiteClock "0:07:33"]
[BlackClock "0:12:48"]

1. e4 {[%emt 1:15:23]} d6 {[%emt 1:16:10]} 2. d4 {[%emt 0:00:25]} Nf6 {[%emt 0:00:26]} 3. Nc3 {[%emt 0:00:27]} g6 {[%emt 0:00:26]} 4. f4 {[%emt 0:00:27]} Bg7 {[%emt 0:00:27]} 5. Nf3 {[%emt 0:00:26]} O-O {[%emt 0:00:27]} 6. e5 {[%emt 0:00:27]} dxe5 {[%emt 0:00:32]} 7. fxe5 {[%emt 0:00:26]} Nd5 {[%emt 0:00:58]} 8. Nxd5 {[%emt 0:00:32]} Qxd5 {[%emt 0:00:27]} 9. Bd3 {[%emt 0:00:29]} Bg4 {[%emt 0:01:58]} 10. Be3 {[%emt 0:00:51]} Nc6 {[%emt 0:01:24]} 11. c4 {[%emt 0:00:51]} Qa5+ {[%emt 0:00:37]} 12. Bd2 {[%emt 0:00:27]} Qb6 {[%emt 0:01:01]} 13. c5 {[%emt 0:01:36]} Qxb2 {[%emt 0:00:36]} 14. Rb1 {[%emt 0:00:28]} Bxf3 {[%emt 0:00:45]} 15. Rxb2 {[%emt 0:00:49]} Bxd1 {[%emt 0:00:27]} 16. Kxd1 {[%emt 0:00:27]} Nxd4 {[%emt 0:00:35]} 17. Rxb7 {[%emt 0:00:28]} Bxe5 {[%emt 0:00:55]} 18. Re1 {[%emt 0:00:26]} f6 {[%emt 0:01:41]} 19. Bc3 {[%emt 0:00:43]} Rfd8 {[%emt 0:00:50]} 20. Bxd4 {[%emt 0:00:40]} Rxd4 {[%emt 0:00:28]} 21. Kc2 {[%emt 0:00:28]} Rad8 {[%emt 0:00:58]} 22. Rd1 {[%emt 0:00:37]} a5 {[%emt 0:00:57]} 23. c6 {[%emt 0:00:42]} Kg7 {[%emt 0:00:46]} 24. Ra7 {[%emt 0:00:42]} R8d5 {[%emt 0:00:35]} 25. Ra6 {[%emt 0:00:28]} Rc5+ {[%emt 0:00:33]} 26. Kb3 {[%emt 0:00:27]} Rb4+ {[%emt 0:00:28]} 0-1